[Event "NJSK 2026 Jeugd A"]
[Site "Helmond, Netherlands"]
[Date "2026.04.29"]
[Round "5.7"]
[White "Ponomarev, Ivan"]
[Black "Van Arendonk, Polle"]
[Result "1-0"]
[TimeControl "90min/40moves + 30min + 30sec/move"]
[WhiteTitle "-"]
[BlackTitle "-"]
[WhiteFideId "34411003"]
[BlackFideId "1072048"]
[WhiteElo "1983"]
[BlackElo "2060"]

1. c4 {[%clk 01:30:58]} {[%emt 00:00:02]} Nf6 {[%clk 01:30:49]} {[%emt
00:00:11]} 2. g3 {[%clk 01:31:23]} {[%emt 00:00:05]} c5 {[%clk 01:31:15]}
{[%emt 00:00:04]} 3. Bg2 {[%clk 01:31:49]} {[%emt 00:00:03]} d5 {[%clk
01:31:41]} {[%emt 00:00:05]} 4. cxd5 {[%clk 01:32:12]} {[%emt 00:00:07]} Nxd5
{[%clk 01:32:07]} {[%emt 00:00:05]} 5. Nf3 {[%clk 01:32:19]} {[%emt 00:00:22]}
Nc6 {[%clk 01:32:30]} {[%emt 00:00:07]} 6. O-O {[%clk 01:27:14]} {[%emt
00:05:35]} e5 {[%clk 01:31:59]} {[%emt 00:01:01]} 7. d3 {[%clk 01:24:09]}
{[%emt 00:03:36]} Be7 {[%clk 01:32:16]} {[%emt 00:00:13]} 8. Nc3 {[%clk
01:24:29]} {[%emt 00:00:10]} Nc7 {[%clk 01:32:36]} {[%emt 00:00:09]} 9. Be3
{[%clk 01:17:58]} {[%emt 00:07:02]} O-O {[%clk 01:27:24]} {[%emt 00:05:41]} 10.
Rc1 {[%clk 01:13:34]} {[%emt 00:04:54]} Bd7 {[%clk 01:23:47]} {[%emt 00:04:07]}
11. a3 {[%clk 01:06:06]} {[%emt 00:07:58]} Rc8 {[%clk 01:18:22]} {[%emt
00:05:56]} 12. Qc2 {[%clk 00:51:06]} {[%emt 00:15:30]} Ne6 {[%clk 01:07:14]}
{[%emt 00:11:37]} 13. Qb1 {[%clk 00:32:13]} {[%emt 00:19:24]} f6 {[%clk
01:02:08]} {[%emt 00:05:35]} 14. Nd5 {[%clk 00:29:43]} {[%emt 00:02:59]} Be8
{[%clk 00:48:11]} {[%emt 00:14:29]} 15. Nxe7+ {[%clk 00:29:24]} {[%emt
00:00:49]} Qxe7 {[%clk 00:47:01]} {[%emt 00:01:40]} 16. b4 {[%clk 00:27:02]}
{[%emt 00:02:52]} cxb4 {[%clk 00:45:40]} {[%emt 00:01:51]} 17. axb4 {[%clk
00:27:26]} {[%emt 00:00:07]} Bf7 {[%clk 00:42:05]} {[%emt 00:04:05]} 18. b5
{[%clk 00:24:24]} {[%emt 00:03:32]} Ncd4 {[%clk 00:41:45]} {[%emt 00:00:49]} 19.
Bxd4 {[%clk 00:23:55]} {[%emt 00:00:59]} Nxd4 {[%clk 00:41:16]} {[%emt
00:01:00]} 20. Nxd4 {[%clk 00:17:24]} {[%emt 00:07:01]} exd4 {[%clk 00:41:40]}
{[%emt 00:00:06]} 21. Bf3 {[%clk 00:16:50]} {[%emt 00:01:03]} Qd7 {[%clk
00:23:35]} {[%emt 00:18:35]} 22. b6 {[%clk 00:14:05]} {[%emt 00:03:16]} a5
{[%clk 00:20:42]} {[%emt 00:03:23]} 23. Qb2 {[%clk 00:10:26]} {[%emt 00:04:08]}
Rfd8 {[%clk 00:16:38]} {[%emt 00:04:34]} 24. Qa3 {[%clk 00:06:46]} {[%emt
00:04:10]} Bd5 {[%clk 00:16:23]} {[%emt 00:00:46]} 25. Qxa5 {[%clk 00:06:16]}
{[%emt 00:01:00]} Bxf3 {[%clk 00:16:49]} {[%emt 00:00:04]} 26. exf3 {[%clk
00:06:43]} {[%emt 00:00:02]} Rc6 {[%clk 00:16:07]} {[%emt 00:01:12]} 27. f4
{[%clk 00:03:29]} {[%emt 00:03:44]} Rdc8 {[%clk 00:14:43]} {[%emt 00:01:55]} 28.
Rxc6 {[%clk 00:02:25]} {[%emt 00:01:34]} Rxc6 {[%clk 00:14:51]} {[%emt
00:00:21]} 29. Re1 {[%clk 00:01:00]} {[%emt 00:01:55]} h6 {[%clk 00:13:47]}
{[%emt 00:01:34]} 30. Qb5 {[%clk 00:01:06]} {[%emt 00:00:24]} Qd8 {[%clk
00:08:46]} {[%emt 00:05:31]} 31. Qh5 {[%clk 00:00:49]} {[%emt 00:00:47]} Kf8
{[%clk 00:09:11]} {[%emt 00:00:05]} 32. Qg6 {[%clk 00:00:57]} {[%emt 00:00:22]}
Rxb6 {[%clk 00:09:26]} {[%emt 00:00:15]} 33. Qh7 {[%clk 00:01:10]} {[%emt
00:00:17]} Rd6 {[%clk 00:09:06]} {[%emt 00:00:50]} 34. f5 {[%clk 00:00:52]}
{[%emt 00:00:49]} b5 {[%clk 00:07:09]} {[%emt 00:02:27]} 35. Re4 {[%clk
00:01:11]} {[%emt 00:00:10]} Qd7 {[%clk 00:05:59]} {[%emt 00:01:41]} 36. Qh8+
{[%clk 00:01:14]} {[%emt 00:00:27]} Kf7 {[%clk 00:06:28]} {[%emt 00:00:01]} 37.
Rg4 {[%clk 00:01:31]} {[%emt 00:00:12]} Qxf5 {[%clk 00:06:18]} {[%emt
00:00:40]} 38. Rxg7+ {[%clk 00:01:51]} {[%emt 00:00:10]} Ke6 {[%clk 00:06:47]}
{[%emt 00:00:02]} 39. Qg8+ {[%clk 00:02:10]} {[%emt 00:00:10]} Kd5 {[%emt
00:00:16]} 1-0

[Event "NJSK 2026 Jeugd A"]
[Site "Helmond, Netherlands"]
[Date "2026.04.29"]
[Round "5.8"]
[White "Garay, Enzo"]
[Black "Fallaux, Storm"]
[Result "1-0"]
[TimeControl "90min/40moves + 30min + 30sec/move"]
[WhiteTitle "-"]
[BlackTitle "-"]
[WhiteFideId "40104125"]
[BlackFideId "1073095"]
[WhiteElo "2098"]
[BlackElo "2034"]

1. e4 {[%clk 01:30:57]} {[%emt 00:00:02]} e5 {[%clk 01:30:53]} {[%emt
00:00:08]} 2. Nf3 {[%clk 01:31:22]} {[%emt 00:00:05]} Nc6 {[%clk 01:31:15]}
{[%emt 00:00:07]} 3. Bb5 {[%clk 01:31:45]} {[%emt 00:00:08]} a6 {[%clk
01:31:39]} {[%emt 00:00:06]} 4. Ba4 {[%clk 01:32:12]} {[%emt 00:00:03]} Nf6
{[%clk 01:32:02]} {[%emt 00:00:07]} 5. O-O {[%clk 01:32:36]} {[%emt 00:00:06]}
Be7 {[%clk 01:32:26]} {[%emt 00:00:04]} 6. Re1 {[%clk 01:33:03]} {[%emt
00:00:05]} b5 {[%clk 01:32:51]} {[%emt 00:00:06]} 7. Bb3 {[%clk 01:33:30]}
{[%emt 00:00:03]} O-O {[%clk 01:33:12]} {[%emt 00:00:08]} 8. h3 {[%clk
01:33:56]} {[%emt 00:00:04]} d6 {[%clk 01:30:21]} {[%emt 00:03:21]} 9. c3
{[%clk 01:33:53]} {[%emt 00:00:33]} Na5 {[%clk 01:29:37]} {[%emt 00:01:14]} 10.
Bc2 {[%clk 01:34:16]} {[%emt 00:00:07]} c5 {[%clk 01:28:32]} {[%emt 00:01:35]}
11. d4 {[%clk 01:34:26]} {[%emt 00:00:20]} Qc7 {[%clk 01:26:56]} {[%emt
00:02:06]} 12. d5 {[%clk 01:34:36]} {[%emt 00:00:20]} h6 {[%clk 01:22:36]}
{[%emt 00:04:50]} 13. b3 {[%clk 01:27:34]} {[%emt 00:07:32]} Re8 {[%clk
01:17:44]} {[%emt 00:05:22]} 14. Nbd2 {[%clk 01:25:01]} {[%emt 00:03:03]} Bf8
{[%clk 01:16:38]} {[%emt 00:01:36]} 15. Re3 {[%clk 01:17:37]} {[%emt 00:07:54]}
Bd7 {[%clk 01:12:56]} {[%emt 00:04:12]} 16. Nh2 {[%clk 01:04:45]} {[%emt
00:13:22]} g6 {[%clk 01:11:49]} {[%emt 00:01:36]} 17. Ndf1 {[%clk 01:01:31]}
{[%emt 00:03:44]} Bg7 {[%clk 01:07:07]} {[%emt 00:05:12]} 18. g4 {[%clk
00:53:25]} {[%emt 00:08:38]} Qc8 {[%clk 00:48:49]} {[%emt 00:18:47]} 19. Bd2
{[%clk 00:48:32]} {[%emt 00:05:23]} c4 {[%clk 00:47:49]} {[%emt 00:01:31]} 20.
b4 {[%clk 00:46:00]} {[%emt 00:03:03]} Nb7 {[%clk 00:48:10]} {[%emt 00:00:09]}
21. Qc1 {[%clk 00:46:07]} {[%emt 00:00:22]} h5 {[%clk 00:38:06]} {[%emt
00:10:35]} 22. f3 {[%clk 00:44:30]} {[%emt 00:02:07]} Nh7 {[%clk 00:33:53]}
{[%emt 00:04:43]} 23. Re1 {[%clk 00:41:39]} {[%emt 00:03:21]} h4 {[%clk
00:32:37]} {[%emt 00:01:46]} 24. Ne3 {[%clk 00:30:56]} {[%emt 00:11:13]} f6
{[%clk 00:26:03]} {[%emt 00:07:04]} 25. Ng2 {[%clk 00:28:42]} {[%emt 00:02:43]}
g5 {[%clk 00:26:12]} {[%emt 00:00:22]} 26. Ne3 {[%clk 00:29:03]} {[%emt
00:00:09]} Nd8 {[%clk 00:24:51]} {[%emt 00:01:50]} 27. Nf5 {[%clk 00:29:00]}
{[%emt 00:00:33]} Nf7 {[%clk 00:24:26]} {[%emt 00:00:55]} 28. Nf1 {[%clk
00:25:44]} {[%emt 00:03:47]} Nf8 {[%clk 00:20:09]} {[%emt 00:04:46]} 29. N1e3
{[%clk 00:23:03]} {[%emt 00:03:13]} Ng6 {[%clk 00:19:31]} {[%emt 00:01:07]} 30.
Kh2 {[%clk 00:21:06]} {[%emt 00:02:26]} Bf8 {[%clk 00:15:04]} {[%emt 00:04:57]}
31. a4 {[%clk 00:20:26]} {[%emt 00:01:11]} Qb7 {[%clk 00:13:35]} {[%emt
00:01:58]} 32. Qb2 {[%clk 00:19:05]} {[%emt 00:01:51]} Nf4 {[%clk 00:05:38]}
{[%emt 00:08:28]} 33. Ra3 {[%clk 00:15:41]} {[%emt 00:03:55]} Rec8 {[%clk
00:05:47]} {[%emt 00:00:20]} 34. Rea1 {[%clk 00:12:22]} {[%emt 00:03:50]} Bxf5
{[%clk 00:03:42]} {[%emt 00:02:34]} 35. Nxf5 {[%clk 00:12:26]} {[%emt
00:00:26]} Rab8 {[%clk 00:02:05]} {[%emt 00:02:07]} 36. axb5 {[%clk 00:12:32]}
{[%emt 00:00:24]} axb5 {[%clk 00:02:20]} {[%emt 00:00:15]} 37. Ra7 {[%clk
00:12:39]} {[%emt 00:00:23]} Qb6 {[%clk 00:02:42]} {[%emt 00:00:09]} 38. Be3
{[%clk 00:12:22]} {[%emt 00:00:46]} Qd8 {[%clk 00:03:04]} {[%emt 00:00:07]} 39.
R1a6 {[%clk 00:10:54]} {[%emt 00:01:59]} Rc7 {[%clk 00:02:55]} {[%emt
00:00:40]} 40. Qa3 {[%clk 00:10:37]} {[%emt 00:00:46]} Rcb7 {[%clk 00:01:32]}
{[%emt 00:01:53]} 41. Bxf4 {[%clk 00:01:37]} {[%emt 00:09:30]} exf4 {[%clk
00:26:12]} {[%emt 00:05:49]} 42. Nd4 {[%clk 00:31:33]} {[%emt 00:00:34]} Ne5
{[%clk 00:22:07]} {[%emt 00:04:35]} 43. Kg2 {[%clk 00:31:00]} {[%emt 00:01:03]}
Qd7 {[%clk 00:17:41]} {[%emt 00:04:57]} 44. Kf2 {[%clk 00:24:29]} {[%emt
00:07:01]} Be7 {[%clk 00:15:37]} {[%emt 00:02:34]} 45. Nc6 {[%clk 00:22:06]}
{[%emt 00:02:54]} Rc8 {[%clk 00:15:00]} {[%emt 00:01:07]} 46. Ra8 {[%clk
00:17:34]} {[%emt 00:05:02]} Rxa8 {[%clk 00:12:33]} {[%emt 00:02:56]} 47. Rxa8+
{[%clk 00:17:33]} {[%emt 00:00:32]} Kg7 {[%clk 00:12:38]} {[%emt 00:00:24]} 48.
Nd4 {[%clk 00:17:21]} {[%emt 00:00:42]} Kh7 {[%clk 00:08:53]} {[%emt 00:04:15]}
49. Ne6 {[%clk 00:17:00]} {[%emt 00:00:49]} Rb6 {[%clk 00:08:29]} {[%emt
00:00:57]} 50. Qa5 {[%clk 00:16:02]} {[%emt 00:01:27]} Rb7 {[%clk 00:07:53]}
{[%emt 00:01:06]} 51. Ke2 {[%clk 00:15:59]} {[%emt 00:00:33]} Ng6 {[%clk
00:07:16]} {[%emt 00:01:07]} 52. Qa6 {[%clk 00:11:36]} {[%emt 00:04:52]} Ne5
{[%clk 00:06:20]} {[%emt 00:01:27]} 53. Kf2 {[%clk 00:09:29]} {[%emt 00:02:37]}
Ng6 {[%clk 00:06:04]} {[%emt 00:00:47]} 54. e5 {[%clk 00:09:36]} {[%emt
00:00:23]} dxe5 {[%clk 00:05:45]} {[%emt 00:00:48]} 55. Rd8 {[%clk 00:09:58]}
{[%emt 00:00:08]} Bxd8 {[%clk 00:04:13]} {[%emt 00:02:03]} 56. Nf8+ {[%clk
00:10:22]} {[%emt 00:00:06]} Kg7 {[%clk 00:04:22]} {[%emt 00:00:20]} 57. Nxd7
{[%clk 00:10:47]} {[%emt 00:00:05]} Rxd7 {[%clk 00:04:43]} {[%emt 00:00:09]} 58.
Bxg6 {[%clk 00:10:47]} {[%emt 00:00:30]} Kxg6 {[%clk 00:05:03]} {[%emt
00:00:10]} 59. Qxb5 {[%clk 00:11:13]} {[%emt 00:00:05]} Rd6 {[%clk 00:04:42]}
{[%emt 00:00:50]} 60. Qxc4 {[%clk 00:11:33]} {[%emt 00:00:10]} Bb6+ {[%clk
00:04:35]} {[%emt 00:00:37]} 61. Ke2 {[%clk 00:11:57]} {[%emt 00:00:06]} Be3
{[%clk 00:03:33]} {[%emt 00:01:32]} 62. Qc8 {[%clk 00:12:07]} {[%emt 00:00:20]}
Rb6 {[%clk 00:02:57]} {[%emt 00:01:07]} 63. Kd3 {[%clk 00:12:23]} {[%emt
00:00:13]} Kf7 {[%clk 00:02:56]} {[%emt 00:00:31]} 64. Qd7+ {[%clk 00:12:33]}
{[%emt 00:00:20]} Kg6 {[%clk 00:02:51]} {[%emt 00:00:36]} 65. Ke4 {[%clk
00:12:54]} {[%emt 00:00:08]} Ra6 {[%clk 00:02:59]} {[%emt 00:00:22]} 66. Qe8+
{[%clk 00:13:18]} {[%emt 00:00:06]} Kg7 {[%clk 00:03:15]} {[%emt 00:00:14]} 67.
Kf5 {[%clk 00:13:37]} {[%emt 00:00:10]} e4 {[%clk 00:02:31]} {[%emt 00:01:14]}
68. Qe7+ {[%clk 00:13:38]} {[%emt 00:00:29]} Kg8 {[%clk 00:02:51]} {[%emt
00:00:11]} 69. Qxe4 {[%clk 00:14:00]} {[%emt 00:00:08]} 1-0

[Event "NJSK 2026 Jeugd A"]
[Site "Helmond, Netherlands"]
[Date "2026.04.29"]
[Round "5.9"]
[White "Xu, Alex Z"]
[Black "Ten Kate, Gustav"]
[Result "1-0"]
[TimeControl "90min/40moves + 30min + 30sec/move"]
[WhiteTitle "-"]
[BlackTitle "-"]
[WhiteFideId "40114775"]
[BlackFideId "1095781"]
[WhiteElo "1965"]
[BlackElo "1972"]

1. e4 {[%clk 01:30:59]} {[%emt 00:00:01]} c5 {[%clk 01:30:51]} {[%emt
00:00:09]} 2. Nf3 {[%clk 01:31:25]} {[%emt 00:00:04]} d6 {[%clk 01:31:12]}
{[%emt 00:00:09]} 3. d4 {[%clk 01:31:50]} {[%emt 00:00:05]} cxd4 {[%clk
01:31:38]} {[%emt 00:00:04]} 4. Nxd4 {[%clk 01:32:17]} {[%emt 00:00:04]} Nf6
{[%clk 01:32:02]} {[%emt 00:00:05]} 5. Nc3 {[%clk 01:32:40]} {[%emt 00:00:08]}
a6 {[%clk 01:32:28]} {[%emt 00:00:02]} 6. h3 {[%clk 01:31:50]} {[%emt
00:01:21]} e5 {[%clk 01:32:40]} {[%emt 00:00:18]} 7. Nde2 {[%clk 01:32:07]}
{[%emt 00:00:12]} h5 {[%clk 01:32:53]} {[%emt 00:00:16]} 8. g3 {[%clk
01:32:12]} {[%emt 00:00:27]} Be7 {[%clk 01:33:13]} {[%emt 00:00:09]} 9. Bg2
{[%clk 01:32:36]} {[%emt 00:00:06]} b5 {[%clk 01:33:32]} {[%emt 00:00:11]} 10.
Nd5 {[%clk 01:32:50]} {[%emt 00:00:17]} Nxd5 {[%clk 01:33:54]} {[%emt
00:00:07]} 11. Qxd5 {[%clk 01:33:15]} {[%emt 00:00:06]} Ra7 {[%clk 01:34:17]}
{[%emt 00:00:07]} 12. Be3 {[%clk 01:33:41]} {[%emt 00:00:05]} Rb7 {[%clk
01:34:41]} {[%emt 00:00:05]} 13. O-O {[%clk 01:33:44]} {[%emt 00:00:27]} Nd7
{[%clk 01:33:59]} {[%emt 00:01:11]} 14. Qd2 {[%clk 01:34:04]} {[%emt 00:00:11]}
Rc7 {[%clk 01:20:20]} {[%emt 00:14:08]} 15. a4 {[%clk 01:28:54]} {[%emt
00:05:41]} b4 {[%clk 01:15:22]} {[%emt 00:05:28]} 16. a5 {[%clk 01:16:11]}
{[%emt 00:13:13]} Bb7 {[%clk 01:14:40]} {[%emt 00:01:11]} 17. Rad1 {[%clk
01:14:00]} {[%emt 00:02:41]} Qa8 {[%clk 01:10:14]} {[%emt 00:04:57]} 18. f3
{[%clk 01:09:06]} {[%emt 00:05:24]} O-O {[%clk 01:03:00]} {[%emt 00:07:43]} 19.
Qxb4 {[%clk 01:02:37]} {[%emt 00:07:00]} Rxc2 {[%clk 01:01:17]} {[%emt
00:02:13]} 20. Nc3 {[%clk 01:00:45]} {[%emt 00:02:22]} Rb8 {[%clk 00:51:43]}
{[%emt 00:10:04]} 21. Qa4 {[%clk 00:57:01]} {[%emt 00:04:14]} Rxc3 {[%clk
00:49:44]} {[%emt 00:02:30]} 22. bxc3 {[%clk 00:57:18]} {[%emt 00:00:13]} Bc6
{[%clk 00:49:26]} {[%emt 00:00:46]} 23. Qa2 {[%clk 00:56:22]} {[%emt 00:01:26]}
Rc8 {[%clk 00:42:12]} {[%emt 00:07:46]} 24. c4 {[%clk 00:51:05]} {[%emt
00:05:46]} Nc5 {[%clk 00:42:30]} {[%emt 00:00:12]} 25. Rb1 {[%clk 00:38:58]}
{[%emt 00:12:37]} h4 {[%clk 00:38:41]} {[%emt 00:04:20]} 26. g4 {[%clk
00:35:27]} {[%emt 00:04:01]} Ne6 {[%clk 00:37:36]} {[%emt 00:01:35]} 27. Rfd1
{[%clk 00:32:59]} {[%emt 00:02:58]} Rd8 {[%clk 00:34:33]} {[%emt 00:03:33]} 28.
Bf1 {[%clk 00:30:59]} {[%emt 00:02:30]} Bg5 {[%clk 00:33:45]} {[%emt 00:01:18]}
29. Qf2 {[%clk 00:25:17]} {[%emt 00:06:11]} Bxe3 {[%clk 00:30:02]} {[%emt
00:04:14]} 30. Qxe3 {[%clk 00:25:40]} {[%emt 00:00:07]} g5 {[%clk 00:28:02]}
{[%emt 00:02:30]} 31. Rb6 {[%clk 00:22:26]} {[%emt 00:03:44]} f6 {[%clk
00:26:26]} {[%emt 00:02:05]} 32. c5 {[%clk 00:14:37]} {[%emt 00:08:19]} Nxc5
{[%clk 00:23:58]} {[%emt 00:02:58]} 33. Rxd6 {[%clk 00:12:11]} {[%emt
00:02:57]} Rxd6 {[%clk 00:17:05]} {[%emt 00:07:22]} 34. Qxc5 {[%clk 00:12:21]}
{[%emt 00:00:21]} Qd8 {[%clk 00:17:05]} {[%emt 00:00:29]} 35. Bc4+ {[%clk
00:11:08]} {[%emt 00:01:43]} Kg7 {[%clk 00:15:27]} {[%emt 00:02:08]} 36. Bd5
{[%clk 00:11:26]} {[%emt 00:00:12]} Rxd5 {[%clk 00:15:07]} {[%emt 00:00:50]} 37.
exd5 {[%clk 00:11:48]} {[%emt 00:00:08]} Qxd5 {[%clk 00:14:31]} {[%emt
00:01:06]} 38. Rxc6 {[%clk 00:09:40]} {[%emt 00:02:39]} Qd1+ {[%clk 00:14:43]}
{[%emt 00:00:17]} 39. Kg2 {[%clk 00:10:04]} {[%emt 00:00:06]} 1-0

[Event "NJSK 2026 Jeugd A"]
[Site "Helmond, Netherlands"]
[Date "2026.04.30"]
[Round "6.1"]
[White "Ritzerveld, Noah"]
[Black "Zhu, Chenwu"]
[Result "1/2-1/2"]
[TimeControl "90min/40moves + 30min + 30sec/move"]
[WhiteTitle "-"]
[BlackTitle "-"]
[WhiteFideId "1085760"]
[BlackFideId "1080687"]
[WhiteElo "2205"]
[BlackElo "2282"]

1. e4 {[%clk 01:30:58]} {[%emt 00:00:01]} c5 {[%clk 01:30:54]} {[%emt
00:00:06]} 2. Nf3 {[%clk 01:31:25]} {[%emt 00:00:03]} Nc6 {[%clk 01:31:21]}
{[%emt 00:00:04]} 3. d4 {[%clk 01:31:50]} {[%emt 00:00:04]} cxd4 {[%clk
01:31:48]} {[%emt 00:00:04]} 4. Nxd4 {[%clk 01:32:17]} {[%emt 00:00:03]} g6
{[%clk 01:32:01]} {[%emt 00:00:20]} 5. c4 {[%clk 01:32:33]} {[%emt 00:00:11]}
Nf6 {[%clk 01:32:25]} {[%emt 00:00:06]} 6. Nc3 {[%clk 01:33:00]} {[%emt
00:00:03]} Nxd4 {[%clk 01:32:49]} {[%emt 00:00:06]} 7. Qxd4 {[%clk 01:33:26]}
{[%emt 00:00:04]} d6 {[%clk 01:33:12]} {[%emt 00:00:07]} 8. Be3 {[%clk
01:33:10]} {[%emt 00:00:45]} Bg7 {[%clk 01:33:34]} {[%emt 00:00:08]} 9. f3
{[%clk 01:33:36]} {[%emt 00:00:04]} O-O {[%clk 01:33:48]} {[%emt 00:00:16]} 10.
Qd2 {[%clk 01:34:02]} {[%emt 00:00:04]} Be6 {[%clk 01:33:27]} {[%emt 00:00:51]}
11. Rc1 {[%clk 01:33:48]} {[%emt 00:00:44]} Qa5 {[%clk 01:33:20]} {[%emt
00:00:37]} 12. b3 {[%clk 01:33:45]} {[%emt 00:00:32]} Rfc8 {[%clk 01:32:58]}
{[%emt 00:00:53]} 13. Bd3 {[%clk 01:33:57]} {[%emt 00:00:17]} a6 {[%clk
01:31:04]} {[%emt 00:02:25]} 14. Nd5 {[%clk 01:34:18]} {[%emt 00:00:10]} Qxd2+
{[%clk 01:31:01]} {[%emt 00:00:33]} 15. Kxd2 {[%clk 01:34:42]} {[%emt
00:00:06]} Nxd5 {[%clk 01:31:05]} {[%emt 00:00:27]} 16. exd5 {[%clk 01:34:51]}
{[%emt 00:00:21]} Bd7 {[%clk 01:30:28]} {[%emt 00:01:06]} 17. a4 {[%clk
01:35:11]} {[%emt 00:00:10]} Bb2 {[%clk 01:19:15]} {[%emt 00:11:41]} 18. Rb1
{[%clk 01:33:54]} {[%emt 00:01:47]} Ba3 {[%clk 01:06:56]} {[%emt 00:12:50]} 19.
b4 {[%clk 01:31:45]} {[%emt 00:02:39]} a5 {[%clk 00:56:01]} {[%emt 00:11:25]}
20. bxa5 {[%clk 01:30:58]} {[%emt 00:01:17]} Rxa5 {[%clk 00:50:36]} {[%emt
00:05:56]} 21. Rxb7 {[%clk 01:30:27]} {[%emt 00:01:01]} Bf5 {[%clk 00:49:41]}
{[%emt 00:01:24]} 22. Bxf5 {[%clk 01:04:24]} {[%emt 00:26:33]} gxf5 {[%clk
00:50:10]} 23. Ra1 {[%clk 00:59:59]} {[%emt 00:04:55]} Rxa4 {[%clk 00:48:20]}
{[%emt 00:02:21]} 24. Kd3 {[%clk 00:58:01]} {[%emt 00:02:28]} Rcxc4 {[%clk
00:36:53]} {[%emt 00:11:58]} 25. Rxe7 {[%clk 00:40:20]} {[%emt 00:18:10]} f4
{[%clk 00:27:29]} {[%emt 00:09:54]} 26. Bf2 {[%clk 00:34:16]} {[%emt 00:06:33]}
Bb2 {[%clk 00:25:18]} {[%emt 00:02:42]} 27. Rxa4 {[%clk 00:23:37]} {[%emt
00:11:09]} Rxa4 {[%clk 00:25:47]} 28. Ra7 {[%clk 00:22:57]} {[%emt 00:01:10]}
Rb4 {[%clk 00:24:06]} {[%emt 00:02:10]} 29. Be1 {[%clk 00:22:35]} {[%emt
00:00:52]} Rb6 {[%clk 00:18:37]} {[%emt 00:05:59]} 30. Ra4 {[%clk 00:07:07]}
{[%emt 00:15:59]} Be5 {[%clk 00:18:35]} {[%emt 00:00:32]} 31. Bb4 {[%clk
00:05:45]} {[%emt 00:01:53]} Kg7 {[%clk 00:17:07]} {[%emt 00:01:57]} 32. Kc4
{[%clk 00:05:22]} {[%emt 00:00:53]} Kf6 {[%clk 00:16:32]} {[%emt 00:01:04]} 33.
Ra7 {[%clk 00:05:21]} {[%emt 00:00:31]} Rb8 {[%clk 00:15:51]} {[%emt 00:01:12]}
34. Ra6 {[%clk 00:04:51]} {[%emt 00:01:00]} Rg8 {[%clk 00:13:15]} {[%emt
00:03:06]} 35. Bxd6 {[%clk 00:02:13]} {[%emt 00:03:08]} Bxd6 {[%clk 00:12:48]}
{[%emt 00:00:57]} 36. Rxd6+ {[%clk 00:02:39]} {[%emt 00:00:03]} Ke5 {[%clk
00:13:12]} {[%emt 00:00:07]} 37. Rh6 {[%clk 00:02:41]} {[%emt 00:00:28]} Rxg2
{[%clk 00:12:53]} {[%emt 00:00:49]} 38. d6 {[%clk 00:02:11]} {[%emt 00:01:00]}
Rd2 {[%clk 00:10:53]} {[%emt 00:02:28]} 39. Kc5 {[%clk 00:01:03]} {[%emt
00:01:40]} f6 {[%clk 00:10:32]} {[%emt 00:00:51]} 40. Rh5 {[%clk 00:00:35]}
{[%emt 00:00:58]} Ke6 {[%clk 00:09:28]} {[%emt 00:01:34]} 41. Rxh7 {[%clk
00:00:32]} {[%emt 00:00:33]} Rd5+ {[%clk 00:07:25]} {[%emt 00:02:33]} 1/2-1/2